bitfinex/quotes_ETHUSD_20251124
["timestamp","ask_amount","ask_price","bid_price","bid_amount"]
[1763993489792,0.0004,2811.9,2811.8,0.4934]
[1763993490402,0.4767,2811.9,2811.8,0.001]
[1763993490707,0.0004,2811.9,2811.8,0.001]
[1763993491000,1.1219,2811.9,2811.8,0.001]
[1763993493284,0.4767,2811.9,2811.8,0.001]
[1763993494276,0.0004,2811.9,2811.8,0.001]
[1763993496320,0.4767,2811.9,2811.8,0.001]
[1763993496619,1.1219,2811.9,2811.8,0.001]
[1763993498746,0.0004,2811.9,2811.8,0.001]
[1763993499927,0.4767,2811.9,2811.8,0.001]
[1763993500993,0.0004,2811.9,2811.8,0.001]
[1763993501254,0.0004,2811.9,2811.8,0.5934]
[1763993502339,0.0016,2812.2,2811.8,0.5934]
[1763993502858,0.0016,2812.2,2812.1,0.7682]
[1763993503027,0.0016,2812.2,2811.8,0.001]
[1763993503198,0.0016,2812.2,2812.1,0.4924]
[1763993503706,0.0016,2812.2,2812.1,1.0533]
[1763993505312,0.0016,2812.2,2812.1,1.23118941]
[1763993507190,0.0016,2812.2,2812.1,4.68725071]
[1763993507396,0.0016,2812.2,2812.1,1.23118941]
[1763993507593,0.0016,2812.2,2812.1,1.63669341]
[1763993509640,0.0016,2812.2,2812.1,5.91834882]
[1763993510731,0.0016,2812.2,2812.1,5.95390943]
[1763993514952,0.0016,2812.2,2812.1,2.39784813]
[1763993515134,0.0016,2812.2,2812.1,5.95390943]
[1763993516449,0.0016,2812.2,2812.1,9.83390943]
[1763993516612,0.0016,2812.2,2812.1,9.79834882]
[1763993516915,0.0016,2812.2,2812.1,35.62131282]
[1763993518022,0.0016,2812.2,2812.1,35.76231282]
[1763993518548,0.0016,2812.2,2812.1,6.14434882]
[1763993519848,0.0016,2812.2,2812.1,35.54299343]
[1763993520157,0.0016,2812.2,2812.1,30.28104682]
[1763993520817,0.0016,2812.2,2812.1,1.86269341]
[1763993521138,0.0016,2812.2,2812.1,6.14434882]
[1763993521340,0.0016,2812.2,2812.1,8.29912282]
[1763993521544,0.0016,2812.2,2812.1,6.14434882]
[1763993521955,0.0016,2812.2,2812.1,8.46073082]
[1763993522460,0.0016,2812.2,2812.1,8.54756882]
[1763993522667,0.0016,2812.2,2812.1,6.14434882]
[1763993522863,0.0016,2812.2,2812.1,12.96065782]
[1763993523041,0.0016,2812.2,2812.1,11.14080882]
[1763993523235,0.0016,2812.2,2812.1,9.51515082]
[1763993523442,0.0016,2812.2,2812.1,6.14434882]
[1763993523856,0.0016,2812.2,2812.1,1.49588352]
[1763993524068,0.4549,2812.2,2812.1,0.1]
[1763993524252,0.4549,2812.2,2812.0,0.14250266]
[1763993524253,0.9452,2812.2,2812.0,0.14250266]
[1763993524438,0.1955,2812.1,2812.0,0.24250266]
[1763993524637,0.1955,2812.1,2812.0,0.1]
[1763993525165,0.0016,2812.2,2812.1,0.1]
[1763993525474,0.4549,2812.2,2812.1,0.1]
[1763993525637,0.9452,2812.2,2812.1,0.1]
[1763993525838,0.9452,2812.2,2812.0,0.1]
[1763993526045,0.1947,2811.9,2811.8,0.101]
[1763993526373,0.1947,2811.9,2811.8,0.327]
[1763993526935,0.8847,2811.9,2811.8,0.101]
[1763993527153,0.8847,2811.9,2811.8,0.001]
[1763993527738,0.1947,2811.9,2811.8,0.001]
[1763993528057,0.1947,2811.9,2811.8,0.101]
[1763993529083,0.4919,2812.2,2811.8,0.5709]
[1763993529250,0.0016,2812.2,2812.1,0.1]
[1763993529452,0.4549,2812.2,2812.1,0.1]
[1763993529875,0.9452,2812.2,2812.1,0.1]
[1763993531747,0.4549,2812.2,2812.1,0.1]
[1763993532704,0.9452,2812.2,2812.0,0.1]
[1763993533052,0.9452,2812.2,2811.8,0.72659411]
[1763993533253,0.9452,2812.2,2811.9,0.42831019]
[1763993533454,0.9452,2812.2,2812.1,0.1]
[1763993534455,0.4549,2812.2,2812.1,0.1]
[1763993534971,0.0016,2812.2,2812.1,0.5699]
[1763993535177,0.0016,2812.2,2812.1,5.43365941]
[1763993535490,0.0016,2812.2,2812.1,16.13628902]
[1763993535659,0.0016,2812.2,2812.1,16.20821433]
[1763993535864,0.0016,2812.2,2812.1,15.28872033]
[1763993536246,0.0016,2812.2,2812.1,13.62649233]
[1763993536449,0.0016,2812.2,2812.1,12.58422733]
[1763993537457,0.0016,2812.2,2812.1,20.01523733]
[1763993537677,0.0016,2812.2,2812.1,19.00273733]
[1763993538464,0.0016,2812.2,2812.1,19.86008833]
[1763993538683,0.0016,2812.2,2812.1,17.99203633]
[1763993538889,0.0016,2812.2,2812.1,4.68630503]
[1763993539096,0.0016,2812.2,2812.0,0.4903]
[1763993539097,0.9452,2812.2,2812.0,0.4903]
[1763993539399,0.6792,2812.1,2811.9,0.326]
[1763993539551,0.4903,2812.1,2811.9,0.326]
[1763993539755,0.4784,2812.0,2811.9,0.326]
[1763993540096,0.0016,2812.2,2812.1,0.1]
[1763993540463,0.48,2812.2,2812.1,0.1]
[1763993540967,0.9356,2812.2,2812.1,0.1]
[1763993542598,0.48,2812.2,2812.1,0.1]
[1763993543189,0.0016,2812.2,2812.1,0.7445]
[1763993543795,0.0016,2812.2,2812.1,1.24693321]
[1763993544020,0.0016,2812.2,2812.1,0.60243321]
[1763993544224,0.0016,2812.2,2812.1,0.1]
[1763993544430,0.0016,2812.2,2812.1,0.5679]
[1763993544628,0.0016,2812.2,2812.1,4.84955541]
[1763993545223,0.0016,2812.2,2812.1,1.29349411]
[1763993546899,0.0016,2812.2,2812.1,5.25505941]
[1763993547103,0.0016,2812.2,2812.1,6.22202832]
[1763993547409,0.0016,2812.2,2812.1,2.66596702]
[1763993547590,0.0016,2812.2,2812.1,5.25505941]
[1763993549331,0.0016,2812.2,2812.1,5.75275941]
[1763993549524,0.0016,2812.2,2812.1,5.89525344]
[1763993549691,0.0008,2812.2,2812.1,5.89525344]
[1763993550392,0.4792,2812.2,2812.1,1.27359214]
[1763993550592,0.4792,2812.2,2812.1,1.97245732]
[1763993550916,0.9348,2812.2,2812.0,0.4792]
[1763993551096,0.1984,2812.1,2811.8,0.001]
[1763993551289,0.6684,2811.9,2811.8,0.001]
[1763993551694,1.124,2811.9,2811.8,0.001]
[1763993553632,1.124,2811.9,2811.8,0.101]
[1763993554531,0.6684,2811.9,2811.8,0.101]
[1763993554744,1.124,2811.9,2811.8,0.101]
[1763993556746,1.124,2811.9,2811.8,0.001]
[1763993558232,1.124,2811.9,2811.8,0.101]
[1763993558633,1.124,2811.9,2811.8,0.001]
[1763993561963,0.6684,2811.9,2811.8,0.001]
[1763993562114,0.4756,2811.9,2811.8,0.101]
[1763993562313,1.124,2811.9,2811.8,0.101]
[1763993563214,0.6684,2811.9,2811.8,0.101]
[1763993564264,0.0008,2812.2,2811.8,0.101]
[1763993564265,0.0008,2812.2,2811.8,0.4689]
[1763993564632,0.4564,2812.2,2812.1,0.1]
[1763993565046,0.9348,2812.2,2811.8,0.101]
[1763993565215,0.206,2811.9,2811.8,0.101]
[1763993566430,0.0008,2812.2,2812.1,0.1]
[1763993566837,0.4815,2812.2,2812.1,0.1]
[1763993567159,0.9751,2812.2,2812.1,0.1]
[1763993568856,0.9751,2812.2,2811.8,0.001]
[1763993569055,0.6778,2811.9,2811.8,0.001]
[1763993569664,0.6778,2811.9,2811.8,0.101]
[1763993570052,1.1688,2811.9,2811.8,0.101]
[1763993571065,1.1688,2811.9,2811.8,0.001]
[1763993571230,1.1688,2811.9,2811.8,0.101]
[1763993571736,1.1688,2811.9,2811.8,0.001]
[1763993573425,1.168,2811.9,2811.8,0.001]
[1763993576287,0.4807,2811.9,2811.8,0.001]
[1763993576579,0.0008,2812.2,2811.9,0.1]
[1763993576580,0.4918,2812.2,2811.9,0.1]
[1763993576948,0.4947,2812.0,2811.9,0.1]
[1763993577343,0.4918,2812.2,2811.9,0.1]
[1763993579080,0.4918,2812.2,2811.8,0.001]
[1763993579244,0.0008,2812.2,2811.8,0.001]
[1763993579443,0.4918,2812.2,2811.8,0.101]
[1763993580874,0.6447,2811.9,2811.8,0.001]
[1763993581250,1.1357,2811.9,2811.8,0.001]
[1763993581674,0.4947,2811.9,2811.8,0.101]
[1763993582465,0.4947,2811.9,2811.8,0.001]
[1763993582779,1.1357,2811.9,2811.8,0.001]
[1763993582939,0.0008,2812.2,2811.8,0.582]
[1763993583244,0.6447,2811.9,2811.8,0.001]
[1763993583574,0.491,2812.1,2811.8,0.001]
[1763993583779,0.0008,2812.2,2811.9,0.1]
[1763993584375,0.4918,2812.2,2811.9,0.1]
[1763993584880,0.4947,2812.0,2811.9,0.1]
[1763993585038,0.4918,2812.2,2811.9,0.1]
[1763993585241,0.0008,2812.2,2811.9,0.1]
[1763993585748,0.4947,2812.0,2811.8,0.001]
[1763993585976,0.15,2811.9,2811.8,0.001]
[1763993586277,0.4918,2812.2,2811.8,0.001]
[1763993586639,0.4918,2812.2,2811.8,0.101]
[1763993588878,0.0008,2812.2,2812.0,0.1]
[1763993589102,0.4918,2812.2,2812.0,0.1]
[1763993589283,0.4947,2812.1,2812.0,0.1]
[1763993589488,0.0008,2812.2,2812.0,0.1]
[1763993590277,0.0008,2812.2,2812.1,0.581]
[1763993590485,0.0008,2812.2,2812.1,1.0463]
[1763993594691,0.0008,2812.2,2812.1,1.52926101]
[1763993594913,0.0008,2812.2,2812.1,13.4109285]
[1763993595068,0.0008,2812.2,2812.1,20.5522615]
[1763993595274,0.0008,2812.2,2812.1,19.4353015]
[1763993596083,0.0008,2812.2,2812.1,20.6467795]
[1763993597118,0.0008,2812.2,2812.1,21.1655565]
[1763993597298,0.002,2812.5,2812.4,2.417697]
[1763993597502,0.002,2812.8,2812.5,0.886504]
[1763993597669,0.002,2813.6,2812.9,16.178207]
[1763993597876,0.002,2813.6,2813.1,0.481]
[1763993598207,0.002,2813.6,2813.2,8.36478411]
[1763993598406,0.002,2813.6,2813.2,9.05608411]
[1763993598605,0.002,2813.6,2813.2,3.32303652]
[1763993598908,0.002,2813.6,2813.2,2.40339811]
[1763993599295,0.002,2813.6,2813.2,8.13132694]
[1763993599676,0.002,2813.6,2813.2,5.73206894]
[1763993599876,0.002,2813.6,2813.2,5.95806894]
[1763993600415,0.002,2813.6,2813.2,11.49246194]
[1763993600714,0.002,2813.6,2813.2,13.13021272]
[1763993600908,0.002,2813.6,2813.2,12.19021272]
[1763993601113,0.002,2813.6,2813.2,10.66532472]
[1763993601720,0.002,2813.6,2813.2,11.19832472]
[1763993602208,0.002,2813.6,2813.2,7.25082372]
[1763993602413,0.002,2813.6,2813.2,7.47682372]
[1763993602811,0.002,2813.6,2813.2,7.25082372]
[1763993603018,0.002,2813.6,2813.2,10.05329072]
[1763993603214,0.002,2813.6,2813.2,11.13082372]
[1763993603378,0.002,2813.6,2813.2,11.35682372]
[1763993603900,0.002,2813.6,2813.2,11.13082372]
[1763993604080,0.002,2813.6,2813.2,10.89152372]
[1763993604281,0.002,2813.6,2813.2,7.33685289]
[1763993604505,0.002,2813.6,2813.2,12.63356994]
[1763993605582,0.002,2813.6,2813.2,16.27689194]
[1763993605782,0.002,2813.6,2813.2,23.94788505]
[1763993606502,0.002,2813.6,2813.2,40.90870305]
[1763993607613,0.002,2813.6,2813.2,17.53306205]
[1763993607780,0.002,2813.6,2813.2,34.94705083]
[1763993608621,0.002,2813.6,2813.2,32.19272583]
[1763993608783,0.002,2813.6,2813.2,30.41345883]
[1763993608979,0.002,2813.6,2813.2,23.30443183]
[1763993609194,0.002,2813.6,2813.2,15.71880672]
[1763993609393,0.002,2813.6,2813.2,15.49280672]
[1763993609601,0.002,2813.6,2813.2,14.67033172]
[1763993609812,0.002,2813.6,2813.2,15.08020172]
[1763993610121,0.002,2813.6,2813.2,14.67469772]
[1763993610322,0.002,2813.6,2813.2,15.08020172]
[1763993610826,0.002,2813.6,2813.2,18.74626072]
[1763993611122,0.002,2813.6,2813.2,20.77776172]
[1763993611322,0.002,2813.6,2813.2,17.02676172]
[1763993611823,0.002,2813.6,2813.2,26.63942383]
[1763993612538,0.002,2813.6,2813.2,17.58018983]
[1763993612705,0.002,2813.6,2813.2,19.86660883]
[1763993613935,0.002,2813.6,2813.2,21.83573783]
[1763993614895,0.002,2813.6,2813.2,24.16278083]
[1763993615943,0.002,2813.6,2813.2,24.23961383]
[1763993616150,0.002,2813.6,2813.2,21.85054283]
[1763993616724,0.002,2813.6,2813.2,21.62454283]
[1763993617060,0.002,2813.6,2813.2,20.30164883]
[1763993617866,0.002,2813.6,2813.2,15.77587683]
[1763993618160,0.002,2813.6,2813.2,24.51426883]
[1763993618936,0.002,2813.6,2813.2,24.95180383]
[1763993620065,0.002,2813.6,2813.2,26.68854283]
[1763993620640,0.002,2813.6,2813.2,22.22789183]
[1763993621029,0.0012,2813.3,2813.2,25.69458883]
[1763993621228,0.0012,2813.3,2813.2,29.44558883]
[1763993621526,0.0012,2813.3,2813.2,27.94826283]
[1763993622042,0.0012,2813.3,2813.2,31.64741783]
[1763993622361,0.0012,2813.3,2813.2,30.85540883]
[1763993622683,0.002,2813.6,2813.4,23.649228]
[1763993622873,0.002,2813.6,2813.3,1.13109811]
[1763993622874,0.002,2813.6,2813.5,15.68143063]
[1763993623038,0.002,2813.6,2813.5,22.58765252]
[1763993623238,0.002,2813.6,2813.5,22.92545252]
[1763993623668,0.002,2813.6,2813.5,21.97675352]
[1763993623858,0.002,2813.6,2813.5,20.67861352]
[1763993624056,0.002,2813.6,2813.5,20.33592552]
[1763993624260,0.002,2813.6,2813.5,19.77892552]
[1763993624572,0.002,2813.6,2813.5,16.46894952]
[1763993624769,0.002,2813.6,2813.5,16.68629152]
[1763993624945,0.002,2813.6,2813.5,13.66829952]
[1763993625273,0.477,2813.6,2813.5,11.36942252]
[1763993625972,0.9538,2813.6,2813.5,0.1]
[1763993626174,0.9538,2813.6,2813.5,0.326]
[1763993626535,0.9538,2813.6,2813.5,1.05159411]
[1763993627477,0.9538,2813.6,2813.5,0.326]
[1763993630883,0.9538,2813.6,2813.3,0.1]
[1763993631087,0.4789,2813.5,2813.4,0.226]
[1763993631246,0.4789,2813.5,2813.4,0.326]
[1763993631447,0.9461,2813.5,2813.1,0.001]
[1763993631778,0.4672,2813.2,2813.1,0.101]
[1763993632148,0.9461,2813.2,2813.1,0.327]
[1763993633982,0.4672,2813.2,2813.1,4.6073913]
[1763993634183,0.4672,2813.2,2813.1,5.32372103]
[1763993634383,0.4672,2813.2,2813.1,5.42372103]
[1763993634679,0.9461,2813.2,2813.1,1.05259411]
[1763993635062,0.9461,2813.2,2813.1,4.6073913]
[1763993636682,0.9461,2813.2,2813.1,1.05259411]
[1763993638057,0.4672,2813.2,2813.1,4.6073913]
[1763993638257,0.9461,2813.2,2813.1,1.05259411]
[1763993638459,0.4789,2813.5,2813.1,5.42373667]
[1763993638658,0.4672,2813.2,2813.1,5.42373667]
[1763993639689,0.4789,2813.5,2813.1,5.42373667]
[1763993639990,0.4789,2813.5,2813.4,0.1]
[1763993640497,0.4789,2813.5,2813.4,0.226]
[1763993640704,0.9461,2813.5,2813.4,0.326]
[1763993641202,0.9461,2813.5,2813.4,0.226]
[1763993641405,0.9461,2813.5,2813.4,0.326]
[1763993642181,0.4672,2813.5,2813.4,0.326]
[1763993642776,0.9461,2813.5,2813.4,0.326]
[1763993643107,0.4672,2813.5,2813.4,0.326]
[1763993643313,0.9461,2813.5,2813.4,0.326]
[1763993643711,0.4672,2813.5,2813.4,0.326]
[1763993644408,0.002,2813.6,2813.5,0.1]
[1763993644777,0.4684,2813.6,2813.5,0.1]
[1763993645914,0.9473,2813.6,2813.5,0.1]
[1763993646580,0.4684,2813.6,2813.5,0.1]
[1763993647116,0.0012,2813.6,2813.5,0.4378]
[1763993647618,0.4684,2813.6,2813.5,0.1]
[1763993648487,0.0012,2813.6,2813.5,1.56889811]
[1763993648708,0.4684,2813.6,2813.5,1.90346205]
[1763993649020,0.4684,2813.6,2813.5,2.12946205]
[1763993649520,0.0012,2813.6,2813.5,2.12946205]
[1763993649997,0.0012,2813.6,2813.5,2.46726205]
[1763993650781,0.0012,2813.6,2813.5,2.12946205]
[1763993652815,0.0012,2813.6,2813.5,2.46726205]
[1763993653797,0.0012,2813.6,2813.5,6.02155385]
[1763993654018,0.0012,2813.6,2813.5,2.46726205]
[1763993654421,0.0012,2813.6,2813.5,6.02155385]
[1763993654621,0.0012,2813.6,2813.5,6.35935385]
[1763993654829,0.0012,2813.6,2813.5,2.46726205]
[1763993655211,0.4684,2813.6,2813.5,2.12946205]
[1763993655412,0.9473,2813.6,2813.5,2.12946205]
[1763993655725,0.4684,2813.6,2813.5,0.1]
[1763993655923,0.4684,2813.6,2813.3,0.001]
[1763993655924,0.9473,2813.6,2813.3,0.001]
[1763993656136,0.0012,2813.6,2813.4,0.326]
[1763993656348,0.0012,2813.6,2813.4,0.226]
[1763993656659,0.0012,2813.6,2813.5,0.1]
[1763993657337,0.9473,2813.6,2813.5,0.1]
[1763993658112,0.9473,2813.6,2813.4,0.226]
[1763993658427,0.9461,2813.5,2813.4,0.326]
[1763993658630,0.9461,2813.5,2813.4,0.226]
[1763993660248,0.9461,2813.5,2813.3,0.101]
[1763993660249,0.9461,2813.5,2813.3,0.001]
[1763993660449,0.9165,2813.4,2813.3,0.001]
[1763993663352,1.24669723,2813.4,2813.3,0.001]
[1763993664248,0.9165,2813.4,2813.3,0.001]
[1763993668658,0.9157,2813.4,2813.3,0.001]
[1763993671365,1.53419885,2813.4,2813.3,0.001]
[1763993674331,0.9157,2813.4,2813.3,0.001]
[1763993681767,0.4546,2813.4,2813.3,0.001]
[1763993682506,0.9157,2813.4,2813.3,0.001]
[1763993684294,1.10156362,2813.4,2813.3,0.001]
[1763993685808,6.36965216,2813.4,2813.3,0.001]
[1763993685970,8.08481948,2813.4,2813.3,0.001]
[1763993687581,2.81673094,2813.4,2813.3,0.001]
[1763993688202,8.08481948,2813.4,2813.3,0.001]
[1763993688806,8.49032348,2813.4,2813.3,0.001]
[1763993691517,8.08481948,2813.4,2813.3,0.001]
[1763993691702,2.81673094,2813.4,2813.3,0.001]
[1763993692213,2.15704572,2813.4,2813.3,0.001]
[1763993692379,2.15624572,2813.4,2813.3,0.001]
[1763993692987,7.42433426,2813.4,2813.3,0.001]
[1763993695019,2.15624572,2813.4,2813.3,0.001]
[1763993695206,2.20624572,2813.4,2813.3,0.001]
[1763993695378,2.97839915,2813.4,2813.3,0.001]
[1763993696093,8.24648769,2813.4,2813.3,0.001]
[1763993696487,2.97839915,2813.4,2813.3,0.001]
[1763993696825,8.65199169,2813.4,2813.3,0.001]
[1763993696979,8.79451873,2813.4,2813.3,0.001]
[1763993701118,0.405504,2812.9,2811.5,0.001]
[1763993701322,0.405504,2812.5,2811.5,0.001]
[1763993701483,0.37988799,2812.4,2812.0,5.26808854]
[1763993701814,0.05,2812.4,2811.9,0.001]
[1763993701979,0.4719,2812.0,2811.9,0.001]
[1763993702374,0.9571,2812.0,2811.9,0.001]
[1763993702690,0.82206293,2812.4,2811.9,0.3424]
[1763993703017,0.4852,2812.3,2811.9,0.001]
[1763993704838,0.14254075,2812.5,2812.2,0.3414]
[1763993705113,0.14254075,2812.5,2812.3,0.3414]
[1763993706084,0.14254075,2812.5,2811.9,0.3424]
[1763993706316,0.14254075,2812.5,2811.9,0.4424]
[1763993706895,0.62774075,2812.5,2811.9,0.001]
[1763993707584,0.4719,2812.0,2811.9,0.001]
[1763993708109,1.0071,2812.0,2811.9,0.001]
[1763993708502,1.14966666,2812.0,2811.9,0.001]
[1763993710436,0.19256666,2812.0,2811.9,0.001]
[1763993710725,0.41856666,2812.0,2811.9,0.001]
[1763993710920,0.89046666,2812.0,2811.9,0.001]
[1763993711308,0.41856666,2812.0,2811.9,0.3424]
[1763993711508,0.19256666,2812.0,2811.9,0.3424]
[1763993711707,0.05,2812.0,2811.9,0.3424]
[1763993712721,0.05,2812.0,2811.9,0.6838]
[1763993712900,0.05,2812.0,2811.9,0.3424]
[1763993714528,0.05,2812.0,2811.9,0.7838]
[1763993715026,0.23594169,2812.3,2811.9,0.7838]
[1763993715230,0.23594169,2812.3,2812.2,0.5062]
[1763993716239,0.70704169,2812.3,2811.9,0.101]
[1763993716542,0.4719,2812.0,2811.9,0.001]
[1763993717046,0.9571,2812.0,2811.9,0.001]
[1763993719024,1.0071,2812.0,2811.9,0.001]
[1763993719338,0.5219,2812.0,2811.9,0.001]
[1763993722059,0.9944,2812.0,2811.9,0.001]
[1763993724857,1.32464392,2812.0,2811.9,0.001]
[1763993725264,1.32473179,2812.0,2811.9,0.001]
[1763993725462,1.73023579,2812.0,2811.9,0.001]
[1763993725629,1.91751593,2812.0,2811.9,0.001]
[1763993727165,2.06011715,2812.0,2811.9,0.001]
[1763993727954,3.54650175,2812.0,2811.9,0.001]
[1763993732186,2.78571126,2812.0,2811.9,0.001]
[1763993734461,3.54506398,2812.0,2811.9,0.001]
[1763993734666,2.78571126,2812.0,2811.9,0.001]
[1763993735182,3.54519212,2812.0,2811.9,0.001]
[1763993735880,2.78571126,2812.0,2811.9,0.001]
[1763993736787,3.54519088,2812.0,2811.9,0.001]
[1763993737886,7.43688088,2812.0,2811.9,0.001]
[1763993738677,9.98519088,2812.0,2811.9,0.001]
[1763993738863,1.13109811,2811.9,2811.8,0.001]
[1763993739064,22.97074816,2811.9,2811.8,0.001]
[1763993739264,20.01721234,2811.9,2811.8,0.001]
[1763993739766,12.53800534,2811.9,2811.8,0.001]
[1763993739966,17.65059652,2811.9,2811.8,0.001]
[1763993740361,15.43313352,2811.9,2811.8,0.001]
[1763993740770,12.25223852,2811.9,2811.8,0.001]
[1763993741092,12.33662152,2811.9,2811.8,0.001]
[1763993741391,9.68190552,2811.9,2811.8,0.001]
[1763993741562,10.68308421,2811.9,2811.8,0.001]
[1763993741762,13.41004821,2811.9,2811.8,0.001]
[1763993742192,13.61717821,2811.9,2811.8,0.001]
[1763993743193,14.00028821,2811.9,2811.8,0.001]
[1763993743977,13.11073221,2811.9,2811.8,0.001]
[1763993744176,13.12773121,2811.9,2811.8,0.001]
[1763993744865,13.31376551,2811.9,2811.8,0.001]
[1763993745265,13.51729051,2811.9,2811.8,0.001]
[1763993746201,13.6599258,2811.9,2811.8,0.001]
[1763993746566,13.4269738,2811.9,2811.8,0.001]
[1763993746825,11.4172578,2811.9,2811.8,0.001]
[1763993747996,11.4172578,2811.9,2811.6,0.001]
[1763993747997,8.59750311,2811.7,2811.6,0.001]
[1763993748196,19.97752391,2811.7,2811.6,0.001]
[1763993748396,20.43222391,2811.7,2811.6,0.001]
[1763993748696,20.57486988,2811.7,2811.6,0.001]
[1763993748998,20.57486988,2811.7,2811.3,0.001]
[1763993748999,0.405504,2811.4,2811.3,0.001]
[1763993749164,12.79319452,2811.4,2811.3,0.001]
[1763993749363,14.71249799,2811.4,2811.3,0.001]
[1763993749562,14.60774614,2811.4,2811.3,0.001]
[1763993750380,4.96992814,2811.4,2811.3,0.001]
[1763993750600,3.50532467,2811.4,2811.3,0.001]
[1763993752497,8.23632767,2811.4,2811.3,0.001]
[1763993752731,9.18398123,2811.4,2811.3,0.001]
[1763993752883,7.45940786,2811.4,2811.3,0.001]
[1763993753095,4.45297823,2811.4,2811.3,0.001]
[1763993753418,5.0249567,2811.4,2811.3,0.001]
[1763993754421,11.5149567,2811.4,2811.3,0.001]
[1763993754822,10.16359914,2811.4,2811.3,0.001]
[1763993755218,10.56910314,2811.4,2811.3,0.001]
[1763993755596,10.11260314,2811.4,2811.3,0.001]
[1763993755789,9.65020314,2811.4,2811.3,0.001]
[1763993756088,10.12410314,2811.4,2811.3,0.001]
[1763993756498,7.94617702,2811.4,2811.3,0.3424]
[1763993756805,7.18805417,2811.4,2811.3,0.3424]
[1763993757010,7.59355817,2811.4,2811.3,0.001]
[1763993757304,8.31915228,2811.4,2811.3,0.3424]
[1763993757683,1.47364828,2811.4,2811.3,0.3424]
[1763993757882,1.33097636,2811.4,2811.3,0.6838]
[1763993758319,1.33097636,2811.4,2811.3,0.3424]
[1763993758490,1.33097636,2811.4,2811.3,0.6838]
[1763993760303,1.33097636,2811.4,2811.3,0.3424]
[1763993760513,2.21038036,2811.4,2811.3,0.001]
[1763993760711,2.4656584,2811.4,2811.3,0.001]
[1763993761614,2.9221584,2811.4,2811.3,0.001]
[1763993762332,9.3621584,2811.4,2811.3,0.001]
[1763993762538,10.1222841,2811.4,2811.3,0.001]
[1763993763644,9.79210185,2811.4,2811.3,0.001]
[1763993763832,9.66544509,2811.4,2811.3,0.001]
[1763993764427,9.19154509,2811.4,2811.3,0.001]
[1763993764603,9.19154509,2811.4,2811.3,0.3424]
[1763993765038,9.19154509,2811.4,2811.3,0.001]
[1763993765239,8.53076305,2811.4,2811.3,0.3424]
[1763993765454,7.77063735,2811.4,2811.3,0.001]
[1763993765696,8.24453735,2811.4,2811.3,0.001]
[1763993765816,8.65004135,2811.4,2811.3,0.001]
[1763993766218,10.31012769,2811.4,2811.3,0.001]
[1763993766421,10.31012769,2811.4,2811.3,0.3424]
[1763993766422,9.83622769,2811.4,2811.3,0.3424]
[1763993766630,7.77063735,2811.4,2811.3,0.3424]
[1763993766834,7.04504324,2811.4,2811.3,0.6838]
[1763993767142,7.77063735,2811.4,2811.3,0.6838]
[1763993768341,1.33063735,2811.4,2811.3,0.6838]
[1763993768664,0.05,2811.4,2811.3,0.6838]
[1763993772850,0.041,2811.4,2811.3,0.6838]
[1763993773052,0.031,2811.4,2811.3,4.74637724]
[1763993773277,0.031,2811.4,2811.3,6.30242869]
[1763993773762,0.0238851,2811.4,2811.3,2.33985145]
[1763993773983,0.0238851,2811.4,2811.3,1.50939411]
[1763993774465,0.0238851,2811.4,2811.3,5.06646735]
[1763993774666,0.0238851,2811.4,2811.3,5.47197135]
[1763993776151,0.0138851,2811.4,2811.3,20.8070213]
[1763993776548,0.002,2811.5,2811.4,26.31292611]
[1763993776751,0.002,2811.8,2811.4,26.31292611]
[1763993776752,0.002,2811.8,2811.7,9.958268]
[1763993777066,0.002,2811.8,2811.7,10.299668]
[1763993777230,0.002,2811.8,2811.7,1.188304]
[1763993777432,0.002,2811.8,2811.7,5.177362]
[1763993778367,0.002,2811.8,2811.7,9.45952331]
[1763993778566,0.002,2811.8,2811.7,11.00139509]
[1763993778766,0.002,2811.8,2811.7,21.53138809]
[1763993778971,0.002,2811.8,2811.7,18.93078709]
[1763993779652,0.002,2811.8,2811.7,21.56536709]
[1763993780472,0.002,2811.8,2811.7,11.15133309]
[1763993780670,0.002,2811.8,2811.7,7.01233709]
[1763993780881,0.002,2811.8,2811.7,15.20557509]
[1763993781780,0.002,2811.8,2811.7,15.51373409]
[1763993781978,0.002,2811.8,2811.7,9.71731209]
[1763993782278,0.002,2811.8,2811.7,9.94331209]
[1763993782794,0.02,2812.0,2811.9,16.641627]
[1763993783001,0.002,2812.4,2812.0,17.376704]
[1763993783146,0.002,2812.4,2812.2,18.74808611]
[1763993783342,0.002,2812.4,2812.2,18.97408611]
[1763993783698,0.002,2812.4,2812.2,19.00342565]
[1763993783990,0.002,2812.4,2812.2,13.37954765]
[1763993784171,0.002,2812.4,2812.2,14.78772862]
[1763993784682,0.002,2812.4,2812.2,18.34366347]
[1763993785000,0.002,2812.6,2812.5,0.405504]
[1763993785151,0.002,2812.6,2812.5,12.83290806]
[1763993785346,0.002,2812.6,2812.5,13.17430806]
[1763993785542,0.002,2812.6,2812.5,14.49173887]
[1763993785765,0.002,2812.6,2812.5,20.35319987]
[1763993786757,0.002,2812.6,2812.5,24.05120936]
[1763993786953,0.002,2812.6,2812.5,27.86424336]
[1763993787157,0.002,2812.6,2812.5,27.63824336]
[1763993787453,0.0012,2812.6,2812.5,19.36541836]